Cogmind - Beta 14 @@@ ROGUE MODE // 2025.01.01 @ 16:09:44 Player: Beef Result: Destroyed by G-50 Soldier with Heavy Laser Performance ------------- Evolutions (4) 2000 Regions Visited (10) 2000 Robots Destroyed (187) 935 Value Destroyed (5741) 5741 Prototype IDs (16) 320 Alien Tech Used (0) 0 Bonus (1466) 1466 TOTAL SCORE: 12462 Bonus ------- High Alert Combat Kills 974 Follower Combat Kills 507 Friendly Fire -15 Cogmind --------- Core Integrity 0/850 Matter 300/300 Energy 94/100 System Corruption 6% Temperature Cool (9) Movement Walking (120) Location -6/Extension Parts ------- > --- POWER (1) -------- (None) > --- PROPULSION (4) --- Carbon-fiber Leg Carbon-fiber Leg > --- UTILITY (8) ------ Advanced Heat Sink Large Storage Unit Advanced Signal Interpreter Target Analyzer Improved Hacking Suite System Shield Improved System Shield > --- WEAPON (2) ------- Heavy Laser > --- INVENTORY (15) --- Fission Core Carbon-fiber Leg Carbon-fiber Leg Carbon-fiber Leg Carbon-fiber Leg Advanced Sensor Array Core Analyzer Force Field Pulse Rifle Heavy Plasma Cannon Heavy Machine Gun Peak State ------------ > --- POWER ------------ Light Fission Core > --- PROPULSION ------- Carbon-fiber Leg Carbon-fiber Leg Carbon-fiber Leg Flexi-carbon Leg > --- UTILITY ---------- Advanced Heat Sink Large Storage Unit Advanced Signal Interpreter Improved Light Armor Plating Force Field Hacking Suite System Shield Authchip [Weapon] > --- WEAPON ----------- Force Rifle Force Rifle > --- INVENTORY -------- Light Angular Momentum Engine Light Angular Momentum Engine Improved Heat Sink Improved Light Armor Plating Improved Hacking Suite Authchip [Device] Advanced Beam Rifle Coil Gun Coil Gun Heavy Machine Gun Mini Grenade Launcher Great Axe Heavy Pick [Rating: 65] Favorites ----------- Power Light Angular Momentum Engine Engine Light Angular Momentum Engine Power Core Light Fission Core Propulsion Carbon-fiber Leg Treads Light Treads Leg Carbon-fiber Leg Wheel Compact Wheel Utility Hacking Suite Device Advanced Heat Sink Storage Medium Storage Unit Processor Advanced Signal Interpreter Hackware Hacking Suite Protection Improved Light Armor Plating Weapon Advanced Beam Rifle Energy Gun Advanced Beam Rifle Energy Cannon Particle Cannon Ballistic Gun Autogun Launcher Mini Grenade Launcher Impact Weapon Heavy Mace Slashing Weapon Great Axe Build | -11 -10 -9 -9 -9 -8 -8 -8 -8 -6 -6 ------- Run | Yrd Mat Mat Min Exi Min Mat Sto Rec Fac Ext Slots Evolved 8 | . . 2 . . . 2 . . 4 . Power . | . . . . . . . . . . . Propulsion 2 | . . . . . . 2 . . . . Utility 6 | . . 2 . . . . . . 4 . Weapon . | . . . . . . . . . . . Parts Attached 192 | 6 . 14 3 1 6 28 33 11 80 10 Power 20 | 1 . 2 . . 1 1 4 1 9 1 Engine 15 | 1 . 2 . . 1 1 4 1 4 1 Core 5 | . . . . . . . . . 5 . Reactor . | . . . . . . . . . . . Propulsion 62 | 2 . 4 . . 2 11 10 5 23 5 Treads 1 | . . . . . . . . 1 . . Leg 55 | 2 . 4 . . 2 11 10 1 20 5 Wheel 6 | . . . . . . . . 3 3 . Hover . | . . . . . . . . . . . Flight . | . . . . . . . . . . . Utility 52 | 1 . 4 1 1 1 4 5 2 31 2 Device 17 | . . 1 . . 1 1 1 . 13 . Storage 7 | 1 . . 1 1 . 1 1 . 2 . Processor 3 | . . . . . . . . . 3 . Hackware 8 | . . 1 . . . 1 . 2 4 . Protection 17 | . . 2 . . . 1 3 . 9 2 Artifact . | . . . . . . . . . . . Weapon 58 | 2 . 4 2 . 2 12 14 3 17 2 Energy Gun 26 | 1 . 1 . . . 3 8 3 8 2 Energy Cannon 3 | . . . 2 . . . 1 . . . Ballistic Gun 15 | 1 . 2 . . 2 3 1 . 6 . Ballistic Cannon . | . . . . . . . . . . . Launcher 12 | . . 1 . . . 6 3 . 2 . Special Weapon . | . . . . . . . . . . . Impact Weapon 1 | . . . . . . . 1 . . . Slashing Weapon 1 | . . . . . . . . . 1 . Piercing Weapon . | . . . . . . . . . . . Special Melee Weapon . | . . . . . . . . . . . Unidentified Prototypes 5 | . . 1 . . . . 2 . 2 . Corrupted Parts 3 | . . . . . . . . 2 1 . System Corruption 11 | . . . . . . . . 9 2 . Parts Lost 59 | . . 3 . . 5 4 9 1 28 9 Power 6 | . . 1 . . 1 1 . . 1 2 Propulsion 22 | . . . . . 1 2 4 1 11 3 Utility 19 | . . 2 . . 2 . 4 . 9 2 Weapon 12 | . . . . . 1 1 1 . 7 2 Highest Loss Streak 6 | . . 2 . . 3 2 2 1 5 6 To Critical Strikes . | . . . . . . . . . . . Average Slot Usage (%) 92 | . 85 87 88 88 72 94 95 94 93 99 Engine 6 | . 14 10 11 11 10 8 8 9 2 3 Core 1 | . . . . . . . . . 3 2 Leg 25 | . 28 22 22 22 21 35 34 21 20 25 Wheel 1 | . . . . . . . . 8 1 . Device 7 | . . 2 11 11 7 9 10 . 10 6 Storage 8 | . 14 11 11 11 11 9 9 9 6 6 Processor 3 | . . . . . . . . . 6 13 Hackware 13 | . . 7 . . . 7 9 18 19 20 Protection 6 | . . 11 11 11 . 7 5 8 5 5 Energy Gun 8 | . 14 6 . . . 1 11 17 9 12 Energy Cannon 1 | . . . 22 22 5 . . . . . Ballistic Gun 4 | . 14 14 . . 16 12 2 . 2 . Peak Build Rating 65 | 6 6 15 14 14 13 31 36 31 65 60 Average Rating 35 | 4 6 12 13 13 10 24 30 27 55 58 On Entrance 18 | . 6 6 14 13 13 11 28 24 31 60 Naked Turns . | . . . . . . . . . . . Heaviest Build 55 | 13 13 20 18 28 21 32 27 26 55 41 Greatest Support 70 | 20 20 20 20 20 20 56 56 32 70 65 Greatest Overweight (x) 5 | . . . . 1 1 . 1 2 5 . Average Overweight (x) . | . . . . . . . . . . . Largest Inventory Capacity 15 | 8 8 8 8 10 10 10 10 10 15 15 Average Capacity 11 | 6 8 8 8 9 10 10 10 10 14 15 Most Carried 15 | 2 7 8 8 9 9 10 10 10 15 15 Average Carried 10 | . 4 7 7 8 7 8 8 9 12 14 Final Capacity 15 | 8 8 8 8 10 10 10 10 10 15 15 Final Carried 15 | 2 7 8 8 9 8 7 10 10 15 11 Class Distribution -------------------- 52% | Scavenger-Mutant 25% | Mutant 19% | Hacker-Mutant Dominant Class ---------------- Mutant | -10/Materials Mutant | -9/Materials Mutant | -9/Mines Mutant | -9/Exiles Scavenger-Mutant | -8/Mines Mutant | -8/Materials Scavenger-Mutant | -8/Storage Hacker-Mutant | -8/Recycling Scavenger-Mutant | -6/Factory Scavenger-Mutant | -6/Extension Resources | -11 -10 -9 -9 -9 -8 -8 -8 -8 -6 -6 ----------- Run | Yrd Mat Mat Min Exi Min Mat Sto Rec Fac Ext Matter Collected 3402 | 205 67 383 50 20 129 446 627 60 1264 151 Remotely . | . . . . . . . . . . . Salvage Created 7893 | . 79 772 135 . 282 1039 1597 575 2619 795 Parts 349 | . 7 47 11 . 12 71 68 21 92 20 Haulers Intercepted 8 | . . 1 . . . 1 5 . 1 . Recyclers Shooed 13 | . . 1 . . . . 2 6 2 2 Parts Field Recycled . | . . . . . . . . . . . Retrieved Matter . | . . . . . . . . . . . Parts Self-Destructed . | . . . . . . . . . . . Prevented . | . . . . . . . . . . . Kills | -11 -10 -9 -9 -9 -8 -8 -8 -8 -6 -6 ------- Run | Yrd Mat Mat Min Exi Min Mat Sto Rec Fac Ext Combat Hostiles Destroyed 128 | . 4 16 4 . 7 31 22 3 33 8 Melee 3 | . . . . . . . . . 3 . Guns 77 | . 4 16 . . 2 9 15 3 23 5 Cannons 9 | . . . 4 . 5 . . . . . AOE 33 | . . . . . . 22 6 . 5 . Classes Destroyed 17 | . 3 5 1 . 1 2 2 . 3 . Worker 14 | . . 2 1 . . 7 2 . 2 . Builder 7 | . . 2 . . . 1 2 . 1 1 Tunneler 1 | . . . . . . 1 . . . . Hauler 8 | . . 1 . . . 1 5 . 1 . Recycler 20 | . . . 1 . 1 2 3 6 5 2 Mechanic 1 | . . . . . . . 1 . . . Operator 3 | . 1 1 . . . . . . . 1 Watcher 5 | . . 1 . . . 1 2 . 1 . Swarmer 27 | . 3 4 4 . 4 10 1 . . 1 Grunt 60 | . 1 8 . . 2 16 11 . 19 3 Brawler 7 | . . . . . 1 . 5 . 1 . Duelist 3 | . . . . . . 1 . . 2 . Sentry 20 | . . 4 . . . 4 4 3 3 2 Demolisher 1 | . . . . . . . 1 . . . Hunter 4 | . . . . . . . . . 2 2 Programmer 5 | . . . . . . . . . 5 . Behemoth 1 | . . . . . . . . . 1 . Best Kill Streak 17 | . 4 7 5 . 6 17 10 3 7 3 Combat Bots Only 11 | . 4 5 4 . 5 11 8 1 6 3 Max Kills in Single Turn 4 | . 1 1 1 . 1 4 2 1 3 1 Gunslinging 1 | . . . . . . . 1 . . . Exploded 3 | . . . . . . 3 2 . 2 . Melee 1 | . . . . . . . . . 1 . Uniques/NPCs Destroyed . | . . . . . . . . . . . Combat | -11 -10 -9 -9 -9 -8 -8 -8 -8 -6 -6 -------- Run | Yrd Mat Mat Min Exi Min Mat Sto Rec Fac Ext Hostile Shots Fired 1019 | . 28 66 7 . 57 126 121 8 458 148 Missed 298 | . 8 21 2 . 8 31 31 2 137 58 Damage Taken 10788 | . 186 582 41 . 608 1171 1453 93 5313 1341 Core 1369 | . 50 73 9 . 77 94 215 . 681 170 Absorbed by Shields 496 | . . . . . . . . . 496 . Redirected to Shielding 82 | . . 37 7 . 7 . . . 9 22 Ignored by Resistances 95 | . . . . . . 85 10 . . . Core Remaining (%) 70 | 100 80 . . . 60 . . 43 . . Volleys Fired 507 | . 12 64 8 . 29 80 77 26 176 35 Largest 2 | . 2 2 2 . 2 2 2 2 2 2 Hottest 160 | . 70 79 136 . 136 79 122 122 160 154 Shots Fired 927 | . 24 127 16 . 45 121 137 52 335 70 Gun 840 | . 24 126 . . 19 90 131 52 328 70 Cannon 42 | . . . 16 . 26 . . . . . Launcher 45 | . . 1 . . . 31 6 . 7 . Special . | . . . . . . . . . . . Kinetic 295 | . 12 79 . . 19 73 11 . 101 . Thermal 587 | . 12 47 16 . 26 17 120 52 227 70 Explosive 45 | . . 1 . . . 31 6 . 7 . Electromagnetic . | . . . . . . . . . . . Robot Hit Streak 17 | . 6 8 3 . 9 8 10 11 17 10 Robot Miss Streak 5 | . 4 3 1 . 3 5 4 4 5 3 Penetration Max 1 | . . . . . . . . . 1 . Secondary Targets 9 | . 2 2 . . . 1 2 . 1 1 Max Gunslinging Chain 1 | . 1 1 . . . 1 1 . 1 1 Shots Hit Robots 607 | . 14 80 10 . 28 63 88 31 240 53 Core Hits 320 | . 8 32 7 . 12 69 59 9 98 26 Critical Kills 3 | . . 1 . . . . . . 2 . Critical Parts Destroyed 4 | . . . . . . . 1 . 3 . Critical Strikes 45 | . 1 1 . . . 2 10 2 18 11 Burn 35 | . 1 . . . . 2 9 2 10 11 Destroy 6 | . . 1 . . . . . . 5 . Smash 1 | . . . . . . . 1 . . . Sever 3 | . . . . . . . . . 3 . Melee Attacks 35 | . . . . . . . 16 . 19 . Impact 16 | . . . . . . . 16 . . . Slashing 19 | . . . . . . . . . 19 . Piercing . | . . . . . . . . . . . Sneak Attacks 4 | . . . . . . . 2 . 2 . Combat Hostiles . | . . . . . . . . . . . Follow-up Attacks . | . . . . . . . . . . . Damage Inflicted 16960 | . 162 1159 208 . 505 3618 2954 684 6645 1025 Guns 10613 | . 162 1103 . . 158 881 1668 680 4959 1002 Cannons 551 | . . . 204 . 347 . . . . . Explosions 4770 | . . 56 . . . 2737 970 . 1007 . Melee 985 | . . . . . . . 316 . 669 . Ramming 41 | . . . 4 . . . . 4 10 23 Kinetic 3283 | . 36 693 . . 158 656 109 . 1631 . Thermal 8383 | . 126 410 204 . 347 225 1559 680 3830 1002 Explosive 4268 | . . 56 . . . 2737 970 . 505 . Electromagnetic . | . . . . . . . . . . . Impact 316 | . . . . . . . 316 . . . Slashing 669 | . . . . . . . . . 669 . Piercing . | . . . . . . . . . . . Highest Corruption 9 | . . . . . 4 . . 9 6 6 Average Corruption 4 | . . . . . 4 . . 8 3 6 Corruption Purged . | . . . . . . . . . . . Corruption Blocked . | . . . . . . . . . . . Effects 64 | . . . . . 6 . . 1 41 16 Message Errors 17 | . . . . . 1 . . . 11 5 Matter Fused 16 | . . . . . 1 . . . 10 5 Heat Flow Errors 9 | . . . . . 3 . . . 5 1 Energy Discharges 4 | . . . . . . . . 1 3 . Parts Rejected 1 | . . . . . . . . . 1 . Data Loss (minor) 10 | . . . . . . . . . 7 3 Data Loss (major) 1 | . . . . . . . . . 1 . Misfires 4 | . . . . . . . . . 3 1 Weapon Failures 2 | . . . . . 1 . . . . 1 Overload Shots . | . . . . . . . . . . . Overflow Damage 300 | . . . . . . 91 51 . 145 13 Projectiles . | . . . . . . . . . . . Explosions 172 | . . . . . . 91 . . 81 . Melee 128 | . . . . . . . 51 . 64 13 Knockbacks . | . . . . . . . . . . . Impact . | . . . . . . . . . . . Kinetic . | . . . . . . . . . . . Secondary . | . . . . . . . . . . . Self-Inflicted Damage 238 | . . 14 . . . 56 46 . 122 . Shots 9 | . . 1 . . . 4 2 . 2 . Rammed 1 | . . . . . . . . . 1 . Targets Rammed 5 | . . . 1 . . . . 1 2 1 Kicked 4 | . . . 1 . . . . 1 1 1 Crushed . | . . . . . . . . . . . Highest Temperature 484 | . 212 259 120 . 484 19 222 286 306 302 Average Temperature 80 | . 101 69 46 . 182 4 39 102 75 33 Received Heat Transfer 3888 | . 42 192 . . 243 522 621 27 1669 572 Effects 13 | . . 1 . . 7 . . 4 1 . Shutdowns 1 | . . . . . 1 . . . . . Energy Bleed 3 | . . 1 . . 1 . . . 1 . Interference 8 | . . . . . 4 . . 4 . . Matter Decay 1 | . . . . . 1 . . . . . Siege Activations . | . . . . . . . . . . . Robots Corrupted 1 | . . . . . . . . . . 1 Combat Hostiles . | . . . . . . . . . . . Parts Fried 1 | . . . . . . . . . . 1 Impact Corruptions 4 | . . . . . . . 2 . . 2 Robots Melted 5 | . . . . . . . 1 . 2 2 Combat Hostiles 5 | . . . . . . . 1 . 2 2 Parts Melted 50 | . 2 . 1 . 1 2 10 1 20 13 Heat Transferred 17859 | . 444 888 370 . 629 629 3356 1406 6727 3410 Parts Sabotaged . | . . . . . . . . . . . Parts Stolen . | . . . . . . . . . . . Parts Stripped . | . . . . . . . . . . . Power Chain Reactions . | . . . . . . . . . . . Alert | -11 -10 -9 -9 -9 -8 -8 -8 -8 -6 -6 ------- Run | Yrd Mat Mat Min Exi Min Mat Sto Rec Fac Ext Peak Influence 986 | . 109 505 274 . 160 796 986 368 567 467 Initial 368 | . . 45 174 . . 62 336 368 271 250 Average 331 | . 58 233 228 . 116 329 685 104 395 295 Maximum Alert Level 3 | . . 2 1 . . 3 3 1 2 2 Low Security (%) 39 | 100 100 51 43 . 100 58 . 89 18 11 Level 1 21 | . . 27 56 . . 6 10 10 23 70 Level 2 28 | . . 21 . . . 9 32 . 58 17 Level 3 9 | . . . . . . 25 56 . . . Level 4 . | . . . . . . . . . . . Level 5 . | . . . . . . . . . . . High Security . | . . . . . . . . . . . Max Security . | . . . . . . . . . . . Squads Dispatched 25 | . 1 3 . . . 5 5 . 10 1 Investigation 4 | . . 1 . . . 1 . . 2 . Extermination 4 | . . . . . . . . . 4 . Reinforcement 10 | . 1 2 . . . 3 . . 3 1 Assault 5 | . . . . . . . 4 . 1 . Garrison 2 | . . . . . . 1 1 . . . Intercept . | . . . . . . . . . . . Searches Triggered 1 | . . . . . . . . . 1 . Construction Impeded 2 | . . . . . . 1 . . 1 . Haulers Reinforced 2 | . . . . . . . . . 2 . Active Scanning Responses . | . . . . . . . . . . . Cargo Convoy Interrupts . | . . . . . . . . . . . Stealth | -11 -10 -9 -9 -9 -8 -8 -8 -8 -6 -6 --------- Run | Yrd Mat Mat Min Exi Min Mat Sto Rec Fac Ext Distress Signals 5 | . . 1 . . . 3 . . . 1 Communications Jammed . | . . . . . . . . . . . Distress Signals . | . . . . . . . . . . . Times Spotted 201 | . 5 26 4 . 8 37 52 3 42 24 Peak Tracking Total 11 | . 4 6 3 . 4 7 8 1 7 11 Tactical Retreats 13 | . . 3 . . 2 1 2 . 3 2 Traps | -11 -10 -9 -9 -9 -8 -8 -8 -8 -6 -6 ------- Run | Yrd Mat Mat Min Exi Min Mat Sto Rec Fac Ext Traps Triggered 2 | . . . . . . 1 1 . . . Indirectly . | . . . . . . . . . . . Trap Hack Attempts . | . . . . . . . . . . . Triggered . | . . . . . . . . . . . Disarmed . | . . . . . . . . . . . Reprogrammed . | . . . . . . . . . . . Reused . | . . . . . . . . . . . Traps Extracted . | . . . . . . . . . . . Installed . | . . . . . . . . . . . Triggered . | . . . . . . . . . . . Machines | -11 -10 -9 -9 -9 -8 -8 -8 -8 -6 -6 ---------- Run | Yrd Mat Mat Min Exi Min Mat Sto Rec Fac Ext Machines Disabled 15 | . . . . . . 4 3 . 8 . Max in Single Turn 4 | . . . . . . 1 1 . 4 . Garrison Access 1 | . . . . . . . 1 . . . Machines Repaired . | . . . . . . . . . . . Machines Dismantled . | . . . . . . . . . . . Machines Sabotaged . | . . . . . . . . . . . Overloaded Fab Kills . | . . . . . . . . . . . Hacking | -11 -10 -9 -9 -9 -8 -8 -8 -8 -6 -6 --------- Run | Yrd Mat Mat Min Exi Min Mat Sto Rec Fac Ext Machines Accessed 42 | . 1 3 1 1 . 5 7 11 10 3 Terminals 25 | . 1 1 1 . . 3 6 5 5 3 Fabricators 1 | . . . . . . . . . 1 . Repair Stations 2 | . . . . . . . . . 2 . Recycling Units 9 | . . 1 . . . 1 . 5 2 . Scanalyzers 2 | . . 1 . . . 1 . . . . Garrison Access 1 | . . . . . . . 1 . . . Total Hacks 167 | . 3 19 5 4 . 19 27 40 41 9 Successful 106 | . 2 17 1 4 . 15 16 25 23 3 Failed 61 | . 1 2 4 . . 4 11 15 18 6 Catastrophic 2 | . . . . . . . . . 2 . Database Lockouts . | . . . . . . . . . . . Manual 36 | . 3 3 . . . 5 8 11 6 . Terminals 103 | . 3 3 5 . . 7 26 29 21 9 Fabricators 6 | . . . . . . . . . 6 . Repair Stations 9 | . . . . . . . . . 9 . Recycling Units 19 | . . 2 . . . 2 . 10 5 . Scanalyzers 24 | . . 14 . . . 10 . . . . Garrison Access 1 | . . . . . . . 1 . . . Terminal Hacks 47 | . 2 1 1 4 . 2 12 13 9 3 Record 5 | . . . . 4 . . . 1 . . Part Schematic 6 | . . . . . . . 3 3 . . Robot Analysis 1 | . . . . . . . . . 1 . Prototype ID Bank 7 | . 1 . . . . . 3 2 1 . Open Door 5 | . . . . . . . 1 . 1 3 Branch Access Points 4 | . . 1 . . . 1 1 . 1 . Terminal Index 3 | . . . . . . . 1 1 1 . Fabricator Index 2 | . . . . . . . . 1 1 . Alert Level 5 | . . . . . . . 1 3 1 . Unreport Threat 3 | . . . . . . . 1 2 . . Registered Components 2 | . 1 . . . . . . . 1 . Registered Prototypes 1 | . . . . . . . . . 1 . Zone Layout 3 | . . . 1 . . 1 1 . . . Fabricator Hacks 6 | . . . . . . . . . 6 . Network Status 2 | . . . . . . . . . 2 . Load Schematic 2 | . . . . . . . . . 2 . Build 2 | . . . . . . . . . 2 . Repair Station Hacks 2 | . . . . . . . . . 2 . Scan Component 2 | . . . . . . . . . 2 . Recycling Unit Hacks 12 | . . 1 . . . 2 . 5 4 . Report Inventory 9 | . . 1 . . . 1 . 5 2 . Retrieve Matter 1 | . . . . . . 1 . . . . Retrieve Components 2 | . . . . . . . . . 2 . Scanalyzer 23 | . . 13 . . . 10 . . . . Insert Component 12 | . . 7 . . . 5 . . . . Analyze 11 | . . 6 . . . 5 . . . . Garrison Access Hacks 1 | . . . . . . . 1 . . . Seal Access 1 | . . . . . . . 1 . . . Unauthorized Hacks 15 | . . 2 . . . 1 3 7 2 . Terminals 9 | . . 1 . . . 1 3 2 2 . Botnet 9 | . . 1 . . . 1 3 2 2 . Fabricators . | . . . . . . . . . . . Repair Stations . | . . . . . . . . . . . Recycling Units 6 | . . 1 . . . . . 5 . . Tunnel 6 | . . 1 . . . . . 5 . . Scanalyzers . | . . . . . . . . . . . Garrison Access . | . . . . . . . . . . . Data Cores Recovered . | . . . . . . . . . . . Used . | . . . . . . . . . . . Hacking Detections 26 | . 1 2 1 . . 4 5 5 7 1 Full Trace Events 2 | . . . . . . . . . 2 . Feedback Events . | . . . . . . . . . . . Feedback Blocked . | . . . . . . . . . . . Robot Schematics Acquired . | . . . . . . . . . . . Robots Built . | . . . . . . . . . . . Authchips . | . . . . . . . . . . . Time . | . . . . . . . . . . . Total Robot Build Rating . | . . . . . . . . . . . Part Schematics Acquired 17 | . . 6 . . . 5 3 3 . . Parts Built 4 | . . . . . . . . . 4 . Authchips 2 | . . . . . . . . . 2 . Time 83 | . . . . . . . . . 83 . Total Part Build Rating 16 | . . . . . . . . . 16 . Parts Repaired . | . . . . . . . . . . . Time . | . . . . . . . . . . . Parts Recycled . | . . . . . . . . . . . Recycled Matter . | . . . . . . . . . . . Retrieved Matter 96 | . . . . . . 96 . . . . Retrieved Components 15 | . . . . . . . . . 15 . Parts Scanalyzed 11 | . . 6 . . . 5 . . . . Part Schematics Acquired 11 | . . 6 . . . 5 . . . . Parts Damaged . | . . . . . . . . . . . Bothacking | -11 -10 -9 -9 -9 -8 -8 -8 -8 -6 -6 ------------ Run | Yrd Mat Mat Min Exi Min Mat Sto Rec Fac Ext Used RIF Installer . | . . . . . . . . . . . Robots Hacked . | . . . . . . . . . . . Non-combat . | . . . . . . . . . . . Combat . | . . . . . . . . . . . Robot Hacks Applied . | . . . . . . . . . . . Relay Couplers Released . | . . . . . . . . . . . Fabnet Peak Effective % . | . . . . . . . . . . . Robots Rewired 5 | . . . . . . . . . . 5 Allies Hacked . | . . . . . . . . . . . Hacks Repelled . | . . . . . . . . . . . Allies | -11 -10 -9 -9 -9 -8 -8 -8 -8 -6 -6 -------- Run | Yrd Mat Mat Min Exi Min Mat Sto Rec Fac Ext Total Allies 21 | . . . . . . . 12 . . 9 Largest Group 10 | . . . . . . . 10 . . 7 Highest-Rated Group 230 | . . . . . . . 173 . . 230 Highest-Rated Ally 39 | . . . . . . . 31 . . 39 Total Orders 1 | . . . . . . . . . 1 . EXPLORE 1 | . . . . . . . . . 1 . Ally Attacks 118 | . . . . . . . 84 . . 34 Total Damage 1556 | . . . . . . . 1036 . . 520 Kills 20 | . . . . . . . 13 . . 7 Allies Corrupted . | . . . . . . . . . . . Allies Melted . | . . . . . . . . . . . Intel | -11 -10 -9 -9 -9 -8 -8 -8 -8 -6 -6 ------- Run | Yrd Mat Mat Min Exi Min Mat Sto Rec Fac Ext Robot Analysis Total 1 | . . . . . . . . . 1 . Derelict Logs Recovered 2 | . . . 2 . . . . . . . Drone Launches 2 | . . . . . . . . . 2 . Drone Recoveries 2 | . . . . . . . . . 2 . Exploration | -11 -10 -9 -9 -9 -8 -8 -8 -8 -6 -6 ------------- Run | Yrd Mat Mat Min Exi Min Mat Sto Rec Fac Ext Turns Passed 7710 | 61 224 524 206 416 287 841 891 1034 2547 679 Spaces Moved 4392 | 45 154 263 145 249 162 478 428 826 1256 386 Core 7 | 7 . . . . . . . . . . Treads 4 | . . . . . . . . 4 . . Legs 3775 | 38 154 263 145 249 162 478 428 351 1121 386 Wheels 606 | . . . . . . . . 471 135 . Hover . | . . . . . . . . . . . Flight . | . . . . . . . . . . . Fastest Speed 50 | 50 120 120 120 120 120 120 120 100 95 120 Average Speed 123 | 109 120 120 120 165 124 120 123 110 129 121 Slowest Speed 330 | 120 120 120 120 190 190 120 190 260 330 122 Overloaded Moves . | . . . . . . . . . . . Propulsion Burnouts . | . . . . . . . . . . . Robots Hopped . | . . . . . . . . . . . Cave-ins Triggered . | . . . . . . . . . . . Exploration Rate (%) 40 | 3 30 24 38 60 25 46 60 96 27 35 Regions Visited 10 Branch Regions 6 Pre-discovered Areas 8 | . . 1 1 1 . . . 5 . . Known Exits Taken 5 | . . 1 1 . . 1 1 . 1 . Unknown Exits Taken 5 | 1 1 . . 1 1 . . 1 . . Scrap Searched 1 | . . . . . 1 . . . . . Spaces Dug 6 | . . . . . . . 4 . 2 . Terrain Destroyed 301 | . . 6 . . . 175 44 . 76 . Melee 6 | . . . . . . . 4 . 2 . Projectile . | . . . . . . . . . . . AOE 295 | . . 6 . . . 175 40 . 74 . Terrain Rammed . | . . . . . . . . . . . Walls Destroyed . | . . . . . . . . . . . Machines Disabled . | . . . . . . . . . . . Actions | -11 -10 -9 -9 -9 -8 -8 -8 -8 -6 -6 --------- Run | Yrd Mat Mat Min Exi Min Mat Sto Rec Fac Ext Total 5706 | 54 171 362 161 254 204 632 625 899 1813 531 Wait 329 | 2 1 3 . 2 7 20 36 23 198 37 Move 4382 | 44 153 262 144 248 161 477 427 825 1255 386 Hop . | . . . . . . . . . . . Pick Up 98 | 2 5 7 2 1 1 12 14 7 41 6 Fast Attach 53 | 6 . 5 1 1 1 2 9 5 21 2 Attach 43 | . . 1 . . 3 5 4 2 26 2 Detach 11 | . . . . 1 . . 3 . 7 . Swap 96 | . . 8 2 . 2 21 20 4 33 6 Drop 101 | . . 12 3 1 . 15 18 6 35 11 Fire 507 | . 12 64 8 . 29 80 77 26 176 35 Melee 35 | . . . . . . . 16 . 19 . Ram 1 | . . . . . . . . . 1 . Kick 4 | . . . 1 . . . . 1 1 1 Crush . | . . . . . . . . . . . Escape Stasis . | . . . . . . . . . . . Rewire 46 | . . . . . . . 1 . . 45 Trap . | . . . . . . . . . . . Miscellaneous . | . . . . . . . . . . . Route ------- -11/Scrapyard -10/Materials -9/Materials -9/Mines (discovered 2 exits: *Mat / *Exi) -9/Exiles -8/Mines -8/Materials (discovered 2 exits: *Sto x2) -8/Storage -8/Recycling (discovered 2 exits: *Fac / [*Scr]) -6/Factory (discovered 4 exits: *Low x2 / *Ext x2) -6/Extension History --------- Turn | Location | Event 6 | -11/Scrapyard | Discovered new exit (range 15) 62 | -11/Scrapyard | Entered Materials 243 | -10/Materials | Discovered new exit (range 13) 286 | -10/Materials | Entered another Materials area 286 | -9/Materials | Evolved 2 slots: Utility x2 311 | -9/Materials | Build established: Mutant 397 | -9/Materials | Identified exit to Mines 810 | -9/Materials | Entered Mines 827 | -9/Mines | Discovered new exit (range 15) 949 | -9/Mines | Identified exit to Exiles 970 | -9/Mines | Learned location of Zion (-7) 1010 | -9/Mines | Deemed a non-threat by the Exiles lab entrance 1016 | -9/Mines | Entered Exiles 1045 | -9/Exiles | Met 8R-AWN 1066 | -9/Exiles | Met EX-HEX 1158 | -9/Exiles | Met EX-DEC 1241 | -9/Exiles | Met EX-BIN 1409 | -9/Exiles | Discovered new exit (range 14) 1432 | -9/Exiles | Entered Mines 1528 | -8/Mines | Lost 3 parts (1p1n1w) 1569 | -8/Mines | Discovered new exit (range 5) 1719 | -8/Mines | Entered Materials 1719 | -8/Materials | Evolved 2 slots: Propulsion x2 1720 | -8/Materials | Discovered new exit (range 6) 1845 | -8/Materials | Build established: Scavenger-Mutant 2261 | -8/Materials | Destroyed 8 combat bots 2334 | -8/Materials | Build established: Mutant 2342 | -8/Materials | Destroyed 11 combat bots 2378 | -8/Materials | Identified exit to Storage 2493 | -8/Materials | Garrison activated, responded to threat 2555 | -8/Materials | Destroyed 7 combat bots 2560 | -8/Materials | Entered Storage 2593 | -8/Storage | Assisted by bots powering up and referring to "LRC-V3" 2678 | -8/Storage | Identified exit to Recycling 2788 | -8/Storage | Lost 3 allies 2956 | -8/Storage | Met a pair of Derelict thieves 2960 | -8/Storage | First assault squad dispatched 2986 | -8/Storage | Garrison activated, responded to threat 3036 | -8/Storage | Lost 5 allies 3053 | -8/Storage | Destroyed 8 combat bots 3064 | -8/Storage | Build established: Scavenger-Mutant 3247 | -8/Storage | Core integrity fell below 50% 3446 | -8/Storage | Used back door to open Recycling access 3451 | -8/Storage | Entered Recycling 3464 | -8/Recycling | Scanned before Scraplab entrance 3492 | -8/Recycling | Discovered new exit (range 4) 3746 | -8/Recycling | Build established: Hacker-Mutant 4271 | -8/Recycling | Build established: Scavenger-Mutant 4452 | -8/Recycling | Discovered new exit (range 7) 4485 | -8/Recycling | Entered Factory 4485 | -6/Factory | Evolved 4 slots: Utility x4 4788 | -6/Factory | Lost 3 parts (1n1u1w) 4835 | -6/Factory | Search patrols dispatched 4915 | -6/Factory | Discovered new exit (range 16) 4976 | -6/Factory | Identified exit to Lower Caves 4976 | -6/Factory | Identified exit to Extension 5794 | -6/Factory | Lost 5 parts (4n1u) 5885 | -6/Factory | First assault squad dispatched 6082 | -6/Factory | Core integrity fell below 50% 6096 | -6/Factory | Lost 3 parts (2u1w) 6259 | -6/Factory | Lost 4 parts (1n3w) 6360 | -6/Factory | Fabricated Pulse Rifle (x2) 6411 | -6/Factory | Fabricated Adv. Sensor Array (x2) 6454 | -6/Factory | Spotted B-75 Beast 6536 | -6/Factory | Destroyed B-75 Beast 6614 | -6/Factory | Build established: Hacker-Mutant 6710 | -6/Factory | Lost 3 parts (1n1u1w) 6722 | -6/Factory | Core integrity fell below 20% 7032 | -6/Factory | Entered Extension 7206 | -6/Extension | Rescued a captive Derelict 7207 | -6/Extension | Rescued a captive Derelict 7369 | -6/Extension | Build established: Scavenger-Mutant 7591 | -6/Extension | Rescued a captive Derelict 7607 | -6/Extension | Disrupted transfer network 7657 | -6/Extension | Rescued a captive Derelict 7663 | -6/Extension | Spotted B-75 Beast 7691 | -6/Extension | Spotted B-75 Beast 7711 | -6/Extension | Destroyed by G-50 Soldier with Heavy Laser Last Messages --------------- 07693_ Slug penetrates B-75 Beast. 07693_ J3-6NM(g) destroyed. 07695_ Thermic Laser destroyed. 07695_ Lgt. Angular Momentum Engine destroyed. 07695_ Carbon-fiber Leg destroyed. 07695_ Critical hit (Meltdown: +320). 07696_ U-05 Engineer builds a Wall. 07697_ WC-SUJ(h) destroyed. 07697_ U-05 Engineer destroyed. 07700_ System corrupted: Component data lost. 07701_ Acquired Flexi-carbon Leg. 07704_ Acquired 10 matter. 07704_ E8-O4Y(b) destroyed. 07705_ Carbon-fiber Leg destroyed. 07706_ Knocked back. 07707_ Penetrated by Slug. 07709_ Imp. Light Armor Plating destroyed. 07709_ Knocked back. 07709_ Flexi-carbon Leg destroyed. 07710_ R-10 Processor collects Terrain Scan Processor. Map ----- +----------------------------------------------------+ | #####????????????????????????????????????????????? | | #????????????????????????????????????????????? | | ### #????????????????????????????????????????????? | | ??# #????????????????????????????????????????????? | | ??# #????????????????????????????????????????????? | | ??# #???#####??????????###???????????????????????? | | ### ##### ############[#???????????????????????? | | =%[!% ![=[/%/*#???????????????????????? | | = !## ############%#???????????????????????? | | #### #?????????#%=#???????????????????????? | | #?#T #?????????##!#???????????????????????? | | #?## #??????????#=#???????????????????????? | | ########??# #??????????#%#???????????????????????? | | ??????????###??????????#%#???????????????????????? | | ???????????????????????#%#???????????????????????? | | ???????????????????????#=#???????????????????????? | | ???????????????????????#%#???????????????????????? | | ???????????????????????#|#???????????????????????? | | ???????????????????????# #???????????????????????? | | ???????????????????????# #???????????????????????? | | ?????????????????????### #???????????????????????? | | ???????????????????###T# #???????????????????????? | | ???????????????????# %#???????????????????????? | | ???????????????????####;%#???????????????????????? | | ??????????????????????##%###?????????????????????? | | ???????????????????????# @ #?????????????????????? | | ??????????????????????#;!*s###???????????????????? | | ??????????????????????#]%!;; #???????????????????? | | ?????????????????????#=%%=[g R "" ?????????????? | | ????????????????????#BB[*!BB%gg " "????????????? | | ????????????????????#BB %sBB ???????????? | | ????????????????????## h #??????????? | | ?????????????????????# #??????????? | | ????????????????????? ??????????? | | ???????????????????? % ???????????? | | ???????????????????? % ???????????? | | ??????????????????? % t ????????????? | | ??????????????????? ????????????? | | ??????????????????#### ?????????????? | | ?????????????????????# ???????????????? | | ?????????????????????# ?????????????????? | | ?????????????????????# ????????????????????? | | ?????????????????????? ??????????????????????? | | ?????????????????????????????????????????????????? | | ?????????????????????????????????????????????????? | | ?????????????????????????????????????????????????? | | | | | | | | | +----------------------------------------------------+ Best States ------------- Heat Dissipation 64 Energy Generation 18 Energy Capacity 310 Matter Stores 300 Matter Capacity 300 Sight Range 16 Robot Scan Range 16 Terrain Scan Density 10 Armor Coverage 600 Resistance: KI 20 Core Shielding 20 Weapon Shielding 33 Evasion (%) 55 Target Analysis 5 Recoil Reduction 1 Particle Charging 15 Offensive Hacking 12 Defensive Hacking 22 Authchip Count 2 Item Schematics ----------------- Datajack | -9/Materials | Scanalyzed Lgt. Assault Rifle | -9/Materials | Scanalyzed Huge Storage Unit | -9/Materials | Scanalyzed Sml. Laser | -9/Materials | Scanalyzed Com. Wheel | -9/Materials | Scanalyzed Wheel | -9/Materials | Scanalyzed Mni. Grenade Launcher | -8/Materials | Scanalyzed Lrg. Matter Pod | -8/Materials | Scanalyzed Imp. Medium Laser | -8/Materials | Scanalyzed Particle Cannon | -8/Materials | Scanalyzed Imp. Terrain Scan Processor | -8/Materials | Scanalyzed Arm. Leg | -8/Storage | Hacked Adv. Sensor Array | -8/Storage | Hacked Flak Cannon | -8/Storage | Hacked Lgt. Fission Core | -8/Recycling | Hacked Pulse Rifle | -8/Recycling | Hacked Adv. Signal Interpreter | -8/Recycling | Hacked Robot Schematics ------------------ None Fabricated ------------ Pulse Rifle | x2 | -6/Factory | Authchip Adv. Sensor Array | x2 | -6/Factory | Authchip Alien Tech Used ----------------- None Achievements -------------- None Challenges ------------ None Game ------ Seed HackingSystemPerforator Manual? 0 Play Time 01:01:27 Cumulative 145.9 hours Start 2025.01.01 @ 15:12:34 End 2025.01.01 @ 16:09:44 Sessions 1 Manual Loads 0 Difficulty Rogue Special Mode None Game No. 166 Rogue 166 Adventurer 0 Explorer 0 Win Type - Total 3 Types 2/0/1/0/0/0/0/0/0 Lore% 62 Gallery% 69 Achievement% 53 Wizard Run 0 Options --------- Layout 0 ASCII 0 Keyboard 1 Movement Numpad Keybinds 0 Fullscreen 2 Font 18/SmallcapsGlow Map View 76x50 Zoom Use 0% Tactical HUD 1 Map Filters NONE Filters NONE Steam 1 RUN: 94a44bc5-6f40-4a1c-acb1-a669ad6fb152